bitfinex-derivatives/quotes_ETHF0:USTF0_20250712
["timestamp","ask_amount","ask_price","bid_price","bid_amount"]
[1752317797113,5.80325714,2976.4,2976.3,2.4871]
[1752317797308,5.80325714,2976.4,2976.3,1.5411]
[1752317797908,5.80325714,2976.4,2976.3,2.21283]
[1752317799113,5.80325714,2976.4,2976.3,3.15883]
[1752317800319,5.13154714,2976.4,2976.3,3.15883]
[1752317800617,5.80325714,2976.4,2976.3,3.15883]
[1752317801017,5.13154714,2976.4,2976.3,3.15883]
[1752317801716,4.14184714,2976.4,2976.3,3.15883]
[1752317802714,4.81355714,2976.4,2976.3,3.15883]
[1752317802915,5.80325714,2976.4,2976.3,3.15883]
[1752317804019,5.13154714,2976.4,2976.3,3.15883]
[1752317804220,5.80325714,2976.4,2976.3,3.15883]
[1752317804619,5.13154714,2976.4,2976.3,3.15883]
[1752317805118,5.80325714,2976.4,2976.3,3.15883]
[1752317805320,1.92374714,2976.4,2976.3,3.15883]
[1752317805520,2.59545714,2976.4,2976.3,3.15883]
[1752317809423,1.92374714,2976.4,2976.3,3.15883]
[1752317809725,2.59545714,2976.4,2976.3,3.15883]
[1752317815632,2.60025714,2976.4,2976.3,3.15883]
[1752317818334,2.6027354,2976.4,2976.3,3.15883]
[1752317819136,3.44034526,2976.4,2976.3,1.5411]
[1752317819333,3.44034526,2976.4,2976.3,0.9407]
[1752317823442,3.44034526,2976.4,2976.3,2.23593]
[1752317823636,3.43734526,2976.4,2976.3,2.23593]
[1752317823836,2.6027354,2976.4,2976.3,2.23593]
[1752317824342,2.6027354,2976.4,2976.3,1.5642]
[1752317826147,2.6027354,2976.4,2976.3,2.23593]
[1752317827446,5.8105354,2976.4,2976.3,2.23593]
[1752317829148,5.8105354,2976.4,2976.3,1.5642]
[1752317829644,2.6027354,2976.4,2976.3,1.5642]
[1752317829851,5.8105354,2976.4,2976.3,1.5642]
[1752317830243,5.1340254,2976.4,2976.3,3.16573]
[1752317831350,5.8057354,2976.4,2976.3,3.16573]
[1752317831648,5.1340254,2976.4,2976.3,3.16573]
[1752317832650,5.8057354,2976.4,2976.3,3.16573]
[1752317837053,5.1340254,2976.4,2976.3,3.16573]
[1752317838252,5.8057354,2976.4,2976.3,3.16573]
[1752317838453,5.1340254,2976.4,2976.3,3.16573]
[1752317838954,1.9262254,2976.4,2976.3,3.16573]
[1752317840053,2.5979354,2976.4,2976.3,3.16573]
[1752317840254,1.9262254,2976.4,2976.3,3.16573]
[1752317841949,2.5979354,2976.4,2976.3,3.16573]
[1752317845557,1.9262254,2976.4,2976.3,3.16573]
[1752317847159,2.5979354,2976.4,2976.3,3.16573]
[1752317848357,1.9262254,2976.4,2976.3,3.16573]
[1752317849260,2.5979354,2976.4,2976.3,3.16573]
[1752317849653,1.9262254,2976.4,2976.3,3.16573]
[1752317851758,0.9365254,2976.4,2976.3,3.16573]
[1752317851960,0.9846,2976.6,2976.5,0.67169]
[1752317852255,1.92356775,2976.6,2976.5,3.18559]
[1752317852459,0.93896775,2976.6,2976.5,3.18559]
[1752317853360,0.9846,2976.8,2976.7,2.23504]
[1752317853555,0.9846,2976.8,2976.7,3.18554]
[1752317853556,1.92317583,2976.8,2976.7,3.18554]
[1752317853952,2.59479583,2976.8,2976.7,3.18554]
[1752317855059,1.92317583,2976.8,2976.7,3.18554]
[1752317855260,2.59479583,2976.8,2976.7,3.18554]
[1752317856263,1.92317583,2976.8,2976.7,3.18554]
[1752317856559,2.59479583,2976.8,2976.7,3.18554]
[1752317860961,2.59479583,2976.8,2976.7,1.5634]
[1752317861162,2.59779583,2976.8,2976.7,0.9352]
[1752317862262,25.61779583,2976.8,2976.7,0.9352]
[1752317862861,2.59779583,2976.8,2976.7,0.9352]
[1752317863059,25.61679583,2976.8,2976.7,0.9352]
[1752317863760,25.61679583,2976.8,2976.7,1.5634]
[1752317863961,25.61379583,2976.8,2976.7,1.5634]
[1752317865764,25.61379583,2976.8,2976.7,2.4706]
[1752317867267,25.61379583,2976.8,2976.7,1.5634]
[1752317867466,26.44840569,2976.8,2976.7,1.5634]
[1752317868667,26.44840569,2976.8,2976.7,2.23504]
[1752317868966,26.44840569,2976.8,2976.7,1.5634]
[1752317869369,28.82159583,2976.8,2976.7,3.14224]
[1752317869770,5.80259583,2976.8,2976.7,3.14224]
[1752317870068,28.14497583,2976.8,2976.7,3.14224]
[1752317870670,4.14637583,2976.8,2976.7,3.97684986]
[1752317871570,3.2078,2976.8,2976.7,3.97684986]
[1752317872673,23.013,2976.9,2976.8,1.31642]
[1752317872874,23.95087555,2976.9,2976.8,3.17112]
[1752317873368,2.53567555,2976.9,2976.8,3.17112]
[1752317874372,1.86407555,2976.9,2976.8,3.17112]
[1752317874572,2.53567555,2976.9,2976.8,3.17112]
[1752317876073,1.86407555,2976.9,2976.8,3.17112]
[1752317876464,0.93787555,2976.9,2976.8,3.17112]
[1752317876671,3.2078,2977.0,2976.9,1.3164]
[1752317876871,4.14555033,2977.0,2976.9,4.00570986]
[1752317877371,3.2078,2977.0,2976.9,4.00570986]
[1752317878473,0.9262,2977.2,2977.1,1.31635]
[1752317878673,1.86389106,2977.2,2977.1,3.17105]
[1752317881474,0.9262,2977.2,2977.1,3.17105]
[1752317882074,3.2078,2977.7,2977.6,0.6448]
[1752317882273,4.14518961,2977.7,2977.6,3.17094]
[1752317882977,3.2078,2977.7,2977.6,3.17094]
[1752317883369,23.002,2978.2,2978.0,0.67135]
[1752317883370,0.9262,2978.1,2978.0,0.67135]
[1752317883569,1.86278205,2978.1,2978.0,2.22335]
[1752317883778,1.86278205,2978.1,2978.0,3.17085]
[1752317884182,0.9262,2978.1,2978.0,3.17085]
[1752317884382,1.59753,2978.1,2978.0,2.4995]
[1752317885874,2.43213986,2978.1,2978.0,1.5923]
[1752317886777,1.59762,2977.7,2977.6,3.17093]
[1752317889285,1.59762,2977.7,2977.6,2.4995]
[1752317890082,1.59762,2977.7,2977.6,1.5923]
[1752317890783,1.59762,2977.7,2977.6,2.4995]
[1752317891489,2.43222986,2977.7,2977.6,1.5923]
[1752317892483,2.43222986,2977.7,2977.6,2.4995]
[1752317895184,2.43222986,2977.7,2977.6,3.17094]
[1752317896585,0.67142,2977.7,2977.6,3.17094]
[1752317896783,0.9448,2977.7,2977.6,3.17094]
[1752317897184,1.61622,2977.7,2977.6,3.17094]
[1752317897383,1.61622,2977.7,2977.6,2.4995]
[1752317897688,1.61622,2977.7,2977.6,3.17094]
[1752317901197,1.61622,2977.7,2977.6,2.4995]
[1752317901396,1.61622,2977.7,2977.6,1.5923]
[1752317901793,1.61622,2977.7,2977.6,0.9475]
[1752317904998,1.61637,2977.1,2977.0,2.22938]
[1752317905396,1.61637,2977.1,2977.0,3.15828]
[1752317905597,1.61637,2977.1,2977.0,2.4867]
[1752317905797,1.61637,2977.1,2977.0,3.15828]
[1752317906197,0.9448,2977.1,2977.0,3.15828]
[1752317906498,0.9448,2977.3,2977.2,1.27551]
[1752317906699,0.9448,2977.3,2977.2,3.15821]
[1752317907597,1.61633,2977.3,2977.2,2.4867]
[1752317907799,1.61633,2977.3,2977.2,3.15823]
[1752317908499,1.61633,2977.3,2977.2,2.4867]
[1752317909201,1.61633,2977.3,2977.2,3.15823]
[1752317913601,1.61633,2977.3,2977.2,2.4867]
[1752317915401,1.61633,2977.3,2977.2,1.5578]
[1752317915701,1.61633,2977.3,2977.2,0.9538]
[1752317915905,0.83460986,2977.4,2976.9,5.43718]
[1752317915906,1.61638,2977.0,2976.9,5.43718]
[1752317916507,1.61638,2977.0,2976.9,6.36608]
[1752317916804,0.9448,2977.0,2976.9,6.36608]
[1752317917802,1.61638,2977.0,2976.9,6.36608]
[1752317918008,0.9448,2977.0,2976.9,6.36608]
[1752317918307,1.61638,2977.0,2976.9,6.36608]
[1752317919808,1.61638,2977.0,2976.9,5.6945]
[1752317921217,1.61638,2977.0,2976.9,6.3661]
[1752317923212,0.9448,2977.0,2976.9,6.3661]
[1752317923613,1.61638,2977.0,2976.9,6.3661]
[1752317924710,0.9448,2977.0,2976.9,6.3661]
[1752317925215,1.61638,2977.0,2976.9,6.3661]
[1752317926014,0.9448,2977.0,2976.9,6.3661]
[1752317928318,1.61638,2977.0,2976.9,6.3661]
[1752317932318,0.9448,2977.0,2976.9,6.3661]
[1752317932519,1.61638,2977.0,2976.9,6.3661]
[1752317933518,0.9448,2977.0,2976.9,6.3661]
[1752317934210,1.61638,2977.0,2976.9,6.3661]
[1752317935121,0.9448,2977.0,2976.9,6.3661]
[1752317935621,1.61638,2977.0,2976.9,6.3661]
[1752317938420,0.9448,2977.0,2976.9,6.3661]
[1752317939023,1.61638,2977.0,2976.9,6.3661]
[1752317940529,0.9448,2977.0,2976.9,6.3661]
[1752317941728,1.61638,2977.0,2976.9,6.3661]
[1752317946730,1.61638,2977.0,2976.9,4.7656]
[1752317946934,3.38918919,2977.0,2976.9,0.9538]
[1752317950639,3.38918919,2977.0,2976.9,1.5855]
[1752317952539,3.38918919,2977.0,2976.9,2.2571]
[1752317954132,3.38918919,2977.0,2976.9,3.1555]
[1752317954440,2.55457933,2977.0,2976.9,3.1555]
[1752317954744,1.88299933,2977.0,2976.9,3.99010986]
[1752317954930,2.55457933,2977.0,2976.9,3.99010986]
[1752317955136,2.55457933,2977.0,2976.9,3.1555]
[1752317956143,1.61638,2977.0,2976.9,3.1555]
[1752317956341,2.55331891,2977.0,2976.9,3.1555]
[1752317957546,0.93693891,2977.0,2976.9,3.1555]
[1752317957747,1.60974,2977.2,2977.1,1.28725]
[1752317957947,2.54664472,2977.2,2977.1,3.17075]
[1752317960949,2.54664472,2977.2,2977.1,2.4992]
[1752317961149,3.38125458,2977.2,2977.1,1.5222]
[1752317962948,3.38125458,2977.2,2977.1,2.19375]
[1752317963246,3.38125458,2977.2,2977.1,3.17075]
[1752317963845,3.38125458,2977.2,2977.1,2.4992]
[1752317964749,3.38125458,2977.2,2977.1,3.17075]
[1752317964949,3.38125458,2977.2,2977.1,2.4992]
[1752317965249,3.38125458,2977.2,2977.1,3.17075]
[1752317965447,2.54664472,2977.2,2977.1,3.17075]
[1752317972455,0.93690472,2977.2,2977.1,3.17075]
[1752317972657,2.54663472,2977.2,2977.1,3.17075]
[1752317975257,1.87510472,2977.2,2977.1,3.17075]
[1752317978765,2.54663472,2977.2,2977.1,3.17075]
[1752317979068,3.38124458,2977.2,2977.1,1.5222]
[1752317979261,3.38444458,2977.2,2977.1,1.5222]
[1752317980267,3.38124458,2977.2,2977.1,1.5222]
[1752317982469,3.38124458,2977.2,2977.1,2.19375]
[1752317982669,3.38124458,2977.2,2977.1,2.4992]
[1752317983663,3.38124458,2977.2,2977.1,1.5222]
[1752317986768,3.38124458,2977.2,2977.1,3.12885]
[1752317988370,2.70971458,2977.2,2977.1,3.12885]
[1752317988573,3.38124458,2977.2,2977.1,3.12885]
[1752317989675,3.38124458,2977.2,2977.1,2.4573]
[1752317990270,3.38124458,2977.2,2977.1,3.12885]
[1752317990478,3.38124458,2977.2,2977.1,2.4573]
[1752317993178,3.38124458,2977.2,2977.1,3.12885]
[1752317995582,3.38124458,2977.2,2977.1,1.5222]
[1752317998880,3.38124458,2977.2,2977.1,2.19375]
[1752317999184,3.38124458,2977.2,2977.1,3.12885]
[1752317999384,3.38124458,2977.2,2977.1,2.4573]
[1752318000482,3.38124458,2977.2,2977.1,1.5222]
[1752318000685,3.38124458,2977.2,2977.1,2.19375]
[1752318000883,3.38124458,2977.2,2977.1,1.5222]
[1752318002088,0.949,2977.1,2976.8,0.6109]
[1752318002284,0.83460986,2976.9,2976.8,0.6109]
[1752318002486,2.72051458,2976.9,2976.8,1.28252]
[1752318002688,1.88590472,2976.9,2976.8,2.21762]
[1752318002988,0.949,2976.9,2976.8,3.14772]
[1752318004986,4.04240986,2977.3,2977.2,1.28243]
[1752318005288,5.65360923,2977.3,2977.2,2.21253]
[1752318005687,6.60260923,2977.3,2977.2,1.541]
[1752318006790,6.60260923,2977.3,2977.2,2.21253]
[1752318007289,5.93109923,2977.3,2977.2,2.21253]
[1752318007490,6.60260923,2977.3,2977.2,2.21253]
[1752318008389,5.93109923,2977.3,2977.2,2.21253]
[1752318008589,5.93109923,2977.3,2977.2,3.14763]
[1752318008590,5.09648937,2977.3,2977.2,3.14763]
[1752318008990,5.76799937,2977.3,2977.2,3.14763]
[1752318009587,5.93109923,2977.3,2977.2,3.14763]
[1752318012889,5.09648937,2977.3,2977.2,3.14763]
[1752318019791,0.949,2977.3,2977.2,3.14763]
[1752318028498,1.62051,2977.3,2977.2,2.21253]
[1752318028697,0.949,2977.3,2977.2,2.21253]
[1752318029399,1.62051,2977.3,2977.2,2.21253]
[1752318029907,2.55961215,2977.3,2977.2,2.21253]
[1752318030107,1.88810215,2977.3,2977.2,2.21253]
[1752318031807,1.88810215,2977.3,2977.2,3.12783]
[1752318034410,1.88810215,2977.3,2977.2,2.21253]
[1752318035909,2.55961215,2977.3,2977.2,2.21253]
[1752318036302,5.76741215,2977.3,2977.2,2.21253]
[1752318036512,5.76741215,2977.3,2977.2,1.541]
[1752318036708,5.76741215,2977.3,2977.2,0.9301]
[1752318037211,5.76741215,2977.3,2977.2,1.60163]
[1752318037506,5.76741215,2977.3,2977.2,0.9301]
[1752318038009,5.76741215,2977.3,2977.2,1.60163]
[1752318039411,5.76741215,2977.3,2977.2,2.24983]
[1752318041911,2.55961215,2977.3,2977.2,2.24983]
[1752318044413,2.55961215,2977.3,2977.2,1.5783]
[1752318046619,2.55961215,2977.3,2977.2,2.24983]
[1752318047115,2.55961215,2977.3,2977.2,1.5783]
[1752318048613,2.55961215,2977.3,2977.2,2.24983]
[1752318049521,2.55961215,2977.3,2977.2,1.5783]
[1752318049814,2.55961215,2977.3,2977.2,2.24983]
[1752318050316,2.55961215,2977.3,2977.2,1.5783]
[1752318050516,2.55961215,2977.3,2977.2,2.24983]
[1752318053016,1.88810215,2977.3,2977.2,2.24983]
[1752318053215,2.55961215,2977.3,2977.2,3.16343]
[1752318053613,1.88810215,2977.3,2977.2,3.16343]
[1752318058514,0.93910215,2977.3,2977.2,3.16343]
[1752318059510,0.9219,2977.5,2977.2,2.4919]
[1752318059711,0.9219,2977.5,2977.4,3.17019]
[1752318059914,1.86332206,2977.5,2977.4,3.17019]
[1752318064421,0.94142206,2977.5,2977.4,3.17019]
[1752318064628,5.33524671,2978.0,2977.9,3.17008]
[1752318065322,4.1297,2978.0,2977.9,3.17008]
[1752318065820,0.9219,2978.0,2977.9,3.17008]
[1752318068027,4.1297,2978.1,2978.0,3.17006]
[1752318068422,0.9219,2978.3,2978.2,0.6058]
[1752318068727,3.2078,2978.4,2978.3,1.27709]
[1752318068923,4.1297,2978.4,2978.3,3.16999]
[1752318069528,0.9219,2978.4,2978.3,3.16999]
[1752318072624,0.83460986,2978.7,2978.6,0.67122]
[1752318072836,25.31370986,2978.7,2978.6,3.16992]
[1752318075837,25.31810986,2978.7,2978.6,3.16992]
[1752318077540,25.31810986,2978.7,2978.6,2.4987]
[1752318077835,25.31810986,2978.7,2978.6,2.25632]
[1752318079242,25.31810986,2978.7,2978.6,1.5851]
[1752318080244,0.67135,2978.1,2978.0,2.5386]
[1752318080442,2.44795986,2978.1,2978.0,2.5386]
[1752318080739,0.67149,2977.5,2977.4,1.5949]
[1752318080945,2.44809986,2977.5,2977.4,2.5386]
[1752318081240,2.44809986,2977.5,2977.4,1.5949]
[1752318081647,5.65589986,2977.5,2977.4,0.9722]
[1752318082142,28.53389986,2977.5,2977.4,0.9722]
[1752318086642,28.53389986,2977.5,2977.4,1.5949]
[1752318086840,3.2078,2977.8,2977.7,0.6227]
[1752318087041,5.07492892,2977.8,2977.7,3.21002]
[1752318087239,27.0298,2977.8,2977.7,3.21002]
[1752318087444,4.1498,2977.8,2977.7,3.21002]
[1752318087642,27.0298,2977.8,2977.7,3.21002]
[1752318091248,0.6715,2977.5,2977.4,0.67147]
[1752318091542,28.53490986,2977.5,2977.4,1.5949]
[1752318091749,29.46066637,2977.5,2977.4,0.9722]
[1752318091946,1.61354,2977.2,2977.1,2.26645]
[1752318092150,25.32614986,2977.2,2977.1,2.26645]
[1752318092649,25.32614986,2977.2,2977.1,3.21015]
[1752318093148,25.32614986,2977.2,2977.1,2.5386]
[1752318094151,25.32614986,2977.2,2977.1,3.21016]
[1752318099152,24.49154,2977.2,2977.1,3.21016]
[1752318099347,25.32614986,2977.2,2977.1,3.21016]
[1752318100148,24.49154,2977.2,2977.1,3.21016]
[1752318100350,22.88,2977.3,2977.2,1.61524]
[1752318100550,22.88,2977.3,2977.2,2.26644]
[1752318100750,22.88,2977.3,2977.2,3.21014]
[1752318101349,23.822,2977.3,2977.2,3.21014]
[1752318105148,22.88,2977.3,2977.2,3.21014]
[1752318105553,23.786,2977.3,2977.2,3.21014]
[1752318105744,22.88,2977.3,2977.2,3.21014]
[1752318106253,23.786,2977.3,2977.2,3.21014]
[1752318107049,0.906,2977.3,2977.2,3.21014]
[1752318107249,4.1138,2977.5,2977.4,3.15959]
[1752318107451,26.9928,2977.5,2977.4,3.15959]
[1752318111060,1.57752,2977.4,2977.3,0.67149]
[1752318111252,3.33992759,2977.4,2977.3,0.67149]
[1752318111455,3.33992759,2977.4,2977.3,2.22499]
[1752318112455,3.33989759,2977.4,2977.3,3.15959]
[1752318112658,2.66840759,2977.4,2977.3,3.15959]
[1752318113258,3.33989759,2977.4,2977.3,3.15959]
[1752318113860,2.66840759,2977.4,2977.3,3.15959]
[1752318114360,1.83379773,2977.4,2977.3,3.15959]
[1752318114559,24.71279773,2977.4,2977.3,3.15959]
[1752318115458,23.784,2977.4,2977.3,3.15959]
[1752318116360,24.61860986,2977.4,2977.3,3.15959]
[1752318117358,1.74060986,2977.4,2977.3,3.15959]
[1752318118462,1.74060986,2977.4,2977.3,2.22499]
[1752318118961,1.74060986,2977.4,2977.3,3.15959]
[1752318120163,2.66886762,2977.4,2977.3,3.15959]
[1752318120663,2.66886762,2977.4,2977.3,2.22499]
[1752318121567,1.57754,2977.3,2977.2,0.67152]
[1752318121762,0.67154,2977.2,2977.1,1.58524]
[1752318121962,3.34040762,2977.2,2977.1,1.58524]
[1752318122469,2.66886762,2977.2,2977.1,1.58524]
[1752318122664,3.34040762,2977.2,2977.1,1.58524]
[1752318123265,2.66886762,2977.2,2977.1,1.58524]
[1752318124768,3.34040762,2977.2,2977.1,1.58524]
[1752318125468,2.66886762,2977.2,2977.1,1.58524]
[1752318126468,3.34040762,2977.2,2977.1,1.58524]
[1752318127271,2.66886762,2977.2,2977.1,1.58524]
[1752318127466,2.66886762,2977.2,2977.1,2.22504]
[1752318128571,2.66886762,2977.2,2977.1,3.15964]
[1752318128971,25.54786762,2977.2,2977.1,3.15964]
[1752318129873,24.71325776,2977.2,2977.1,3.15964]
[1752318130073,23.80725776,2977.2,2977.1,3.15964]
[1752318130268,0.92825776,2977.2,2977.1,3.15964]
[1752318130468,22.878,2977.2,2977.1,3.15964]
[1752318131175,23.784,2977.2,2977.1,3.15964]
[1752318132278,25.29014986,2977.2,2977.1,2.22504]
[1752318132471,25.54707104,2977.2,2977.1,2.22504]
[1752318132670,25.54707104,2977.2,2977.1,3.15964]
[1752318134180,24.61860986,2977.2,2977.1,3.15964]
[1752318134382,25.54703704,2977.2,2977.1,3.15964]
[1752318134978,24.71242718,2977.2,2977.1,3.15964]
[1752318135982,23.784,2977.2,2977.1,3.15964]
[1752318136183,24.71237684,2977.2,2977.1,3.15964]
[1752318137676,4.1469,2977.4,2977.3,0.67151]
[1752318137877,27.95330853,2977.4,2977.3,3.24151]
[1752318142084,24.74550853,2977.4,2977.3,3.24151]
[1752318142481,0.9391,2977.8,2977.3,3.2078]
[1752318142681,24.74457373,2977.7,2977.6,1.31565]
[1752318142874,24.74457373,2977.7,2977.6,3.24145]
[1752318143080,23.8161,2977.7,2977.6,3.24145]
[1752318143583,4.1469,2978.0,2977.9,3.24138]
[1752318143881,27.95094251,2978.0,2977.9,3.24138]
[1752318145386,27.0229,2978.0,2977.9,3.24138]
[1752318146686,4.1469,2978.0,2977.9,3.24138]
[1752318148182,5.65286986,2978.0,2977.9,3.24138]
[1752318149684,4.98150986,2978.0,2977.9,3.24138]
[1752318150191,5.65286986,2978.0,2977.9,3.24138]
[1752318150385,4.98150986,2978.0,2977.9,3.24138]
[1752318150586,5.65286986,2978.0,2977.9,3.24138]
[1752318150990,4.98150986,2978.0,2977.9,3.24138]
[1752318153593,5.65286986,2978.0,2977.9,3.24138]
[1752318154295,4.98150986,2978.0,2977.9,3.24138]
[1752318155186,4.98150986,2978.0,2977.9,2.25168]
[1752318155592,4.98150986,2978.0,2977.9,3.24138]
[1752318155790,5.65286986,2978.0,2977.9,3.24138]
[1752318155991,4.98150986,2978.0,2977.9,3.24138]
[1752318156487,0.9391,2978.0,2977.9,3.24138]
[1752318157796,4.04240986,2978.3,2978.2,1.31551]
[1752318157992,3.2078,2978.3,2978.2,3.24131]
[1752318158194,23.54225,2978.5,2978.4,1.31547]
[1752318158501,25.40620128,2978.5,2978.4,3.24127]
[1752318159298,25.40620128,2978.5,2978.4,2.57]
[1752318159497,24.73495128,2978.5,2978.4,3.24127]
[1752318159692,23.8101,2978.5,2978.4,3.24127]
[1752318159894,0.9391,2978.5,2978.4,3.24127]
[1752318160097,23.8101,2978.5,2978.4,3.24127]
[1752318160299,24.48134,2978.5,2978.4,3.24127]
[1752318161200,23.8101,2978.5,2978.4,3.24127]
[1752318161401,24.48134,2978.5,2978.4,3.24127]
[1752318161803,24.48134,2978.5,2978.4,2.25157]
[1752318162399,23.8101,2978.5,2978.4,2.25157]
[1752318162797,24.48134,2978.5,2978.4,2.25157]
[1752318163503,23.8101,2978.5,2978.4,2.25157]
[1752318164303,24.48134,2978.5,2978.4,2.25157]
[1752318164502,23.8101,2978.5,2978.4,2.25157]
[1752318165102,24.48134,2978.5,2978.4,2.25157]
[1752318165402,23.8101,2978.5,2978.4,2.25157]
[1752318165603,24.48134,2978.5,2978.4,2.25157]
[1752318165902,23.8101,2978.5,2978.4,2.25157]
[1752318166404,24.48134,2978.5,2978.4,2.25157]
[1752318166604,23.8101,2978.5,2978.4,2.25157]
[1752318168208,24.48134,2978.5,2978.4,2.25157]
[1752318169198,0.67133,2978.2,2978.1,1.5469]
[1752318169397,1.82200986,2978.2,2978.1,2.21821]
[1752318169600,25.36031986,2978.2,2978.1,2.21821]
[1752318170608,25.36031986,2978.2,2978.1,1.5469]
[1752318170907,28.56811986,2978.2,2978.1,0.9005]
[1752318171606,29.49419919,2978.2,2978.1,0.9005]
[1752318172313,0.6714,2977.9,2977.8,1.57189]
[1752318172509,1.50600986,2977.9,2977.8,2.21829]
[1752318172911,2.49340986,2977.9,2977.8,2.21829]
[1752318173910,1.82200986,2977.9,2977.8,2.21829]
[1752318174106,2.49338986,2977.9,2977.8,2.21829]
[1752318175012,1.82200986,2977.9,2977.8,3.15049]
[1752318177315,0.9874,2977.9,2977.8,3.15049]
[1752318179615,1.82200986,2977.9,2977.8,3.15049]
[1752318179920,2.49338986,2977.9,2977.8,3.15049]
[1752318180215,1.82200986,2977.9,2977.8,3.15049]
[1752318180415,2.49338986,2977.9,2977.8,2.2183]
[1752318181020,1.82200986,2977.9,2977.8,3.1505]
[1752318181412,2.49338986,2977.9,2977.8,3.1505]
[1752318182116,0.9874,2977.9,2977.8,3.1505]
[1752318183114,0.9874,2978.2,2978.1,0.6464]
[1752318183417,24.78015167,2978.2,2978.1,2.4791]
[1752318183613,24.78015167,2978.2,2978.1,3.15043]
[1752318184411,24.77915167,2978.2,2978.1,3.15043]
[1752318184913,25.61376153,2978.2,2978.1,3.15043]
[1752318185110,26.28507153,2978.2,2978.1,3.15043]
[1752318186315,25.61376153,2978.2,2978.1,3.15043]
[1752318186511,26.28507153,2978.2,2978.1,3.15043]
[1752318186927,25.61376153,2978.2,2978.1,3.15043]
[1752318187924,26.28507153,2978.2,2978.1,3.15043]
[1752318190320,26.28507153,2978.2,2978.1,2.21823]
[1752318191326,26.28507153,2978.2,2978.1,1.5469]
[1752318191524,29.49287153,2978.2,2978.1,0.9005]
[1752318194515,29.49287153,2978.2,2978.1,1.57183]
[1752318194720,29.49287153,2978.2,2978.1,2.21823]
[1752318195222,29.49287153,2978.2,2978.1,1.5469]
[1752318195626,29.49287153,2978.2,2978.1,0.9005]
[1752318196125,28.65826167,2978.2,2978.1,0.9005]
[1752318196629,29.49287153,2978.2,2978.1,0.9005]
[1752318197525,29.49287153,2978.2,2977.8,0.67138]
[1752318197526,0.67138,2977.9,2977.8,1.32948]
[1752318197725,26.22824153,2977.9,2977.8,2.24248]
[1752318203232,26.22824153,2977.9,2977.8,1.58438]
[1752318203930,26.22824153,2977.9,2977.8,2.24248]
[1752318206429,26.22824153,2977.9,2977.4,3.2078]
[1752318206629,26.22824153,2977.9,2977.4,1.5711]
[1752318206630,2.43857986,2977.5,2977.4,1.5711]
[1752318206827,28.50837986,2977.5,2977.4,0.913]
[1752318207133,29.43544941,2977.5,2977.4,0.913]
[1752318207334,28.50837986,2977.5,2977.4,0.913]
[1752318208034,28.77843909,2977.5,2977.4,0.913]
[1752318208333,28.50837986,2977.5,2977.4,0.913]
[1752318211933,28.50837986,2977.5,2977.4,1.5711]
[1752318213429,29.43457603,2977.5,2977.4,1.5711]
[1752318216134,29.43457603,2977.5,2977.4,0.913]
[1752318216729,25.39416617,2977.5,2977.4,2.5395]
[1752318217034,25.39416617,2977.5,2977.4,3.21099]
[1752318217337,28.60196617,2977.5,2977.4,1.5711]
[1752318218331,28.60196617,2977.5,2977.4,2.5395]
[1752318218533,5.73796617,2977.5,2977.4,2.5395]
[1752318218733,28.60196617,2977.5,2977.4,2.5395]
[1752318220433,28.60196617,2977.5,2977.4,1.5711]
[1752318225335,28.60086714,2977.5,2977.4,1.5711]
[1752318225539,28.60086714,2977.5,2977.4,0.913]
[1752318225840,1.31724,2976.3,2976.2,0.6146]
[1752318226050,30.07504986,2976.3,2976.2,0.6146]
[1752318226341,30.07504986,2976.3,2976.2,1.5613]
[1752318226736,28.49040986,2976.3,2976.2,2.23306]
[1752318226935,29.16214986,2976.3,2976.2,2.23306]
[1752318227145,28.49040986,2976.3,2976.2,2.23306]
[1752318227535,29.16214986,2976.3,2976.2,1.5613]
[1752318227841,29.16214986,2976.3,2976.0,1.5147]
[1752318227842,3.1697,2976.1,2976.0,1.5147]
[1752318228038,26.0347,2976.1,2976.0,1.5147]
[1752318228344,26.86930986,2976.1,2976.0,1.5147]
[1752318228839,26.86930986,2976.1,2976.0,2.18651]
[1752318229742,26.19750986,2976.1,2976.0,3.13321]
[1752318229945,25.28460986,2976.1,2976.0,3.13321]
[1752318230739,26.19750986,2976.1,2976.0,3.13321]
[1752318231032,26.86928986,2976.1,2976.0,3.13321]
[1752318231536,26.19750986,2976.1,2976.0,3.13321]
[1752318231939,26.86928986,2976.1,2976.0,3.13321]
[1752318232747,26.19750986,2976.1,2976.0,3.13321]
[1752318232941,25.28460986,2976.1,2976.0,3.13321]
[1752318233738,4.79245,2976.3,2976.2,0.67176]
[1752318233739,3.8533,2976.3,2976.2,0.67176]
[1752318233944,27.0143,2976.3,2976.2,3.13316]
[1752318234237,0.83460986,2976.5,2976.4,2.23302]
[1752318234238,1.585,2976.5,2976.4,2.23302]
[1752318234438,24.452,2976.5,2976.4,3.13312]
[1752318234744,2.41960986,2976.5,2976.4,3.13312]
[1752318234946,24.452,2976.5,2976.4,3.13312]
[1752318235543,25.12369,2976.5,2976.4,3.13312]
[1752318235743,24.452,2976.5,2976.4,3.13312]
[1752318237043,25.12369,2976.5,2976.4,3.13312]
[1752318237545,24.452,2976.5,2976.4,3.13312]
[1752318237943,25.12369,2976.5,2976.4,2.4614]
[1752318238741,25.12369,2976.5,2976.4,3.13312]
[1752318239441,24.452,2976.5,2976.4,3.13312]
[1752318239735,25.12369,2976.5,2976.4,3.13312]
[1752318240544,24.452,2976.5,2976.4,3.13312]
[1752318241039,0.83460986,2976.6,2976.5,0.67169]
[1752318241240,23.8055,2976.6,2976.5,2.23299]
[1752318241445,24.47717,2976.6,2976.5,3.13309]
[1752318241641,25.31177986,2976.6,2976.5,3.13309]
[1752318241840,25.95727986,2976.6,2976.5,3.13309]
[1752318242543,25.95727986,2976.6,2976.5,2.4614]
[1752318242846,26.87017986,2976.6,2976.5,2.4614]
[1752318243144,26.87017986,2976.6,2976.5,3.13309]
[1752318243644,25.95727986,2976.6,2976.5,3.13309]